bitfinex/quotes_SOLUSD_20251019
["timestamp","ask_amount","ask_price","bid_price","bid_amount"]
[1760871443195,0.71,188.85,188.81,5.29632964]
[1760871443388,0.71,188.85,188.81,5.96632964]
[1760871443592,0.71,188.84,188.81,5.29632964]
[1760871443776,0.71,188.84,188.8,5.29661016]
[1760871443977,0.71,188.84,188.8,5.96661016]
[1760871444181,0.71,188.83,188.8,5.29661016]
[1760871444699,0.71,188.82,188.77,5.96718836]
[1760871444883,18.53227917,188.86,188.78,0.67]
[1760871445220,0.71,188.92,188.82,22.88]
[1760871445528,102.1,188.93,188.83,12.07605207]
[1760871445816,102.1,188.93,188.84,18.53420885]
[1760871446100,102.1,188.93,188.86,10.87647521]
[1760871446298,0.71,188.94,188.87,1.19946471]
[1760871446679,23.59,188.94,188.87,1.19946471]
[1760871447006,23.59,188.94,188.88,5.29436679]
[1760871447382,28.88271066,188.94,188.88,5.96436679]
[1760871447798,0.71,188.94,188.89,0.67]
[1760871447976,0.71,188.94,188.9,0.67]
[1760871449418,0.2,188.95,188.9,5.29379057]
[1760871449590,0.2,188.95,188.91,0.67]
[1760871449797,0.91,188.95,188.91,0.67]
[1760871450589,0.91,188.95,188.91,5.96347896]
[1760871451011,0.2,188.95,188.91,5.96347896]
[1760871451401,0.71,188.94,188.89,5.96385334]
[1760871451600,0.71,188.94,188.89,5.29385334]
[1760871451789,0.71,188.94,188.89,5.96385334]
[1760871451990,0.71,188.94,188.9,0.67]
[1760871452408,0.2,188.95,188.91,0.67]
[1760871452596,0.2,188.95,188.92,0.67]
[1760871452798,0.91,188.95,188.9,0.67]
[1760871453008,0.91,188.95,188.89,0.52940865]
[1760871453009,0.91,188.95,188.91,0.67]
[1760871453396,5.49250921,188.95,188.89,5.29381844]
[1760871453722,0.71,188.94,188.89,5.96381844]
[1760871453896,0.71,188.93,188.89,5.96381844]
[1760871454408,0.71,188.93,188.86,10.87647521]
[1760871454720,0.71,188.92,188.86,5.96481579]
[1760871457109,0.71,188.91,188.85,5.29519514]
[1760871457321,0.71,188.9,188.85,5.29519514]
[1760871457517,0.71,188.89,188.85,5.96519514]
[1760871459326,102.81,188.91,188.85,5.96519514]
[1760871460026,0.71,188.9,188.85,5.96519514]
[1760871462137,0.71,188.89,188.85,5.96519514]
[1760871462311,0.71,188.88,188.85,5.29519514]
[1760871463734,107.39359673,188.91,188.83,18.53500146]
[1760871463931,0.67,188.9,188.84,0.71]
[1760871464935,0.67,188.9,188.85,5.29520783]
[1760871465122,0.67,188.89,188.85,6.00520783]
[1760871466629,0.67,188.9,188.86,0.71]
[1760871466930,102.1,188.91,188.85,5.29520783]
[1760871467139,102.1,188.91,188.87,0.71]
[1760871467317,102.77,188.91,188.87,0.71]
[1760871468024,0.67,188.9,188.85,6.00520783]
[1760871468227,0.67,188.9,188.86,6.00477572]
[1760871468417,0.67,188.9,188.86,5.29477572]
[1760871468614,0.67,188.9,188.84,0.52954882]
[1760871468615,0.67,188.9,188.85,0.71]
[1760871468818,0.67,188.89,188.85,0.71]
[1760871469040,102.77,188.89,188.85,0.71]
[1760871469714,102.77,188.89,188.85,6.00511256]
[1760871470032,102.1,188.89,188.86,0.71]
[1760871470411,102.1,188.89,188.85,5.29511256]
[1760871470648,102.1,188.89,188.87,0.71]
[1760871471138,102.1,188.89,188.88,0.71]
[1760871472734,102.1,188.89,188.88,6.00436679]
[1760871474536,102.77,188.89,188.85,5.29520783]
[1760871474742,102.77,188.89,188.82,10.87647521]
[1760871474921,102.77,188.89,188.85,0.71]
[1760871475926,102.1,188.89,188.86,6.00477614]
[1760871477939,102.1,188.89,188.86,18.53209478]
[1760871478143,0.2,188.95,188.88,10.87647521]
[1760871478343,0.87,188.95,188.89,0.52940865]
[1760871479621,0.87,188.95,188.88,10.87647521]
[1760871479827,0.67,188.94,188.87,37.79647521]
[1760871480139,0.67,188.93,188.88,5.29436679]
[1760871480342,0.67,188.92,188.86,32.21466503]
[1760871480850,0.67,188.92,188.86,5.29466503]
[1760871481027,0.67,188.92,188.87,0.52946471]
[1760871481224,5.29272941,188.94,188.87,0.52946471]
[1760871481442,0.67,188.93,188.86,19.06147641]
[1760871481628,0.67,188.92,188.86,19.06147641]
[1760871482348,0.67,188.92,188.87,10.87647521]
[1760871482541,0.67,188.92,188.86,19.06147641]
[1760871482853,0.67,188.91,188.86,19.06147641]
[1760871483068,0.67,188.9,188.86,19.06147641]
[1760871483243,0.67,188.92,188.86,19.06147641]
[1760871483833,0.67,188.94,188.87,10.87647521]
[1760871484054,0.67,188.94,188.88,0.52943667]
[1760871484458,0.2,188.95,188.88,0.52943667]
[1760871484753,0.67,188.94,188.88,0.52943667]
[1760871485143,0.2,188.95,188.88,0.52943667]
[1760871485337,0.87,188.95,188.88,0.52943667]
[1760871485532,0.87,188.95,188.89,5.2940865]
[1760871485750,0.67,188.94,188.89,5.2940865]
[1760871485953,0.67,188.93,188.89,5.2940865]
[1760871486150,0.67,188.92,188.89,5.2940865]
[1760871486654,0.67,188.94,188.89,5.2940865]
[1760871486956,0.67,188.93,188.89,5.2940865]
[1760871487457,0.2,188.95,188.89,5.2940865]
[1760871487663,0.87,188.95,188.89,5.2940865]
[1760871488557,0.67,188.94,188.89,5.2940865]
[1760871488756,0.67,188.93,188.89,5.2940865]
[1760871489551,0.87,188.95,188.89,5.2940865]
[1760871489759,0.67,188.94,188.89,5.2940865]
[1760871489960,0.2,188.95,188.9,38.30585583]
[1760871490344,0.2,188.95,188.94,10.87647521]
[1760871490544,0.2,188.95,188.94,38.30574376]
[1760871491236,0.2,188.97,188.94,38.30574376]
[1760871491447,0.2,189.03,188.97,33.75647521]
[1760871491643,0.2,189.03,188.99,10.87647521]
[1760871491842,0.2,189.03,189.01,10.87647521]
[1760871492058,0.2,189.03,189.02,5.81948999]
[1760871492444,0.2,189.03,189.02,5.29044545]
[1760871493848,0.2,189.03,189.02,16.16692066]
[1760871497156,0.2,189.07,189.03,10.87647521]
[1760871497361,0.2,189.07,189.05,10.87647521]
[1760871497664,0.2,189.07,189.06,0.52893261]
[1760871498372,0.2,189.07,189.06,5.81825874]
[1760871499165,0.2,189.07,189.06,32.71825874]
[1760871499554,0.2,189.07,189.06,5.81825874]
[1760871499757,0.2,189.07,189.06,32.71825874]
[1760871500069,0.2,189.07,189.06,43.59473395]
[1760871501268,1e-08,189.09,189.06,56.81804929]
[1760871501476,1e-08,189.09,189.08,33.75647521]
[1760871501972,1e-08,189.09,189.08,39.04524186]
[1760871502152,1e-08,189.09,189.08,65.92524186]
[1760871502559,0.67000001,189.09,189.08,39.04524186]
[1760871502761,0.67000001,189.09,189.08,32.16876665]
[1760871502959,0.67000001,189.09,189.05,22.88]
[1760871503157,0.67,189.08,189.06,26.88]
[1760871503359,0.67,189.07,189.06,26.88]
[1760871503760,0.67000001,189.09,189.06,26.88]
[1760871504077,0.67,189.08,189.06,26.88]
[1760871504272,1e-08,189.09,189.06,32.16925942]
[1760871504477,0.67000001,189.09,189.07,11.40537984]
[1760871505261,1e-08,189.09,189.07,11.40537984]
[1760871505661,0.67000001,189.09,189.07,11.40537984]
[1760871506056,1e-08,189.09,189.08,5.28876665]
[1760871508380,1e-08,189.09,189.08,43.04524186]
[1760871509978,1e-08,189.09,189.08,65.92524186]
[1760871511855,1e-08,189.09,189.08,39.04524186]
[1760871512067,1e-08,189.09,189.08,65.92524186]
[1760871513470,1e-08,189.11,189.1,33.75647521]
[1760871513669,1e-08,189.11,189.1,34.28529593]
[1760871513878,1e-08,189.13,189.11,10.87647521]
[1760871514053,0.2,189.16,189.14,33.75647521]
[1760871514573,1e-08,189.15,189.14,33.75647521]
[1760871515170,1e-08,189.15,189.14,60.63647521]
[1760871515367,1e-08,189.15,189.14,61.1651841]
[1760871516283,1e-08,189.15,189.14,65.92356413]
[1760871516467,1e-08,189.15,189.14,66.45227302]
[1760871516966,1e-08,189.16,189.15,10.87647521]
[1760871518082,1e-08,189.16,189.15,16.16328462]
[1760871518283,1e-08,189.17,189.15,16.16328462]
[1760871518479,1e-08,189.17,189.16,11.4051282]
[1760871520285,1e-08,189.17,189.16,43.55165812]
[1760871520987,0.67000001,189.17,189.16,16.69165812]
[1760871521176,0.67000001,189.17,189.16,43.55165812]
[1760871522270,1e-08,189.17,189.16,43.55165812]
[1760871528185,0.2,189.22,189.2,10.87647521]
[1760871528385,0.2,189.22,189.21,38.2649885]
[1760871530001,0.2,189.22,189.21,43.55012142]
[1760871530701,0.92,189.22,189.21,43.55012142]
[1760871531081,0.92,189.22,189.21,9.1449885]
[1760871531280,6.73336689,189.22,189.13,5.28726907]
[1760871531483,0.64,189.21,189.13,5.28726907]
[1760871531785,1.16851329,189.2,189.13,18.50569026]
[1760871531986,0.64,189.19,189.14,26.86]
[1760871532180,0.2,189.22,189.15,0.52868094]
[1760871532383,0.64,189.18,189.15,0.52868094]
[1760871532597,0.64,189.2,189.15,0.52868094]
[1760871532879,0.64,189.19,189.15,0.52868094]
[1760871533080,0.64,189.19,189.16,10.87647521]
[1760871533374,0.64,189.18,189.16,10.87647521]
[1760871534300,0.64,189.18,189.17,5.28625046]
[1760871537787,0.64,189.2,189.17,5.28625046]
[1760871537981,0.64,189.19,189.17,5.28625046]
[1760871539088,0.2,189.22,189.18,38.97507231]
[1760871539398,0.2,189.22,189.18,12.11507231]
[1760871539709,0.2,189.22,189.2,10.87647521]
[1760871539887,0.2,189.22,189.21,0.52851329]
[1760871540092,0.2,189.22,189.21,28.09851329]
[1760871541111,0.2,189.22,189.21,17.40012142]
[1760871541283,0.2,189.22,189.21,44.26012142]
[1760871541690,0.2,189.22,189.21,43.55012142]
[1760871542008,0.2,189.22,189.21,16.69012142]
[1760871542194,0.2,189.22,189.21,43.55012142]
[1760871542579,0.2,189.22,189.21,32.67364621]
[1760871542895,0.2,189.22,189.21,33.38364621]
[1760871543092,0.2,189.22,189.21,6.52364621]
[1760871543395,0.2,189.22,189.21,44.26012142]
[1760871543892,0.2,189.22,189.21,32.67364621]
[1760871544402,0.2,189.22,189.21,44.26012142]
[1760871546701,0.2,189.22,189.21,5.28513292]
[1760871546894,0.2,189.22,189.21,32.14513292]
[1760871547592,0.2,189.22,189.21,32.85513292]
[1760871549315,0.2,189.22,189.21,43.73160813]
[1760871549502,1e-08,189.23,189.22,10.87647521]
[1760871549689,1e-08,189.23,189.22,12.11496057]
[1760871550596,0.2,189.25,189.22,12.11496057]
[1760871550811,0.2,189.25,189.24,10.87647521]
[1760871551009,1e-08,189.25,189.24,38.26490471]
[1760871551311,1e-08,189.25,189.24,38.97490471]
[1760871551499,1e-08,189.25,189.24,44.25919978]
[1760871555030,1e-08,189.25,189.24,17.39919978]
[1760871555328,1e-08,189.25,189.24,44.25919978]
[1760871556016,1e-08,189.25,189.24,43.54919978]
[1760871556701,1e-08,189.25,189.24,44.23919978]
[1760871559717,1e-08,189.25,189.24,17.37919978]
[1760871560113,1e-08,189.25,189.24,44.21919978]
[1760871561524,1e-08,189.25,189.24,17.37919978]
[1760871561826,1e-08,189.25,189.24,44.21919978]
[1760871562033,1e-08,189.26,189.24,67.09919978]
[1760871562325,1e-08,189.26,189.25,34.44647521]
[1760871562530,1e-08,189.26,189.25,61.28647521]
[1760871562908,1e-08,189.26,189.25,34.44647521]
[1760871563130,1e-08,189.26,189.25,61.28647521]
[1760871564037,1e-08,189.26,189.25,66.57049106]
[1760871564228,1e-08,189.26,189.25,39.73049106]
[1760871564615,1e-08,189.26,189.25,66.57049106]
[1760871564817,1e-08,189.26,189.25,43.69049106]
[1760871565435,1e-08,189.26,189.25,39.73049106]
[1760871565648,1e-08,189.26,189.25,66.57049106]
[1760871567937,1e-08,189.26,189.25,43.69049106]
[1760871569434,0.64,189.34,189.29,33.75647521]
[1760871569636,0.64,189.33,189.3,27.36826201]
[1760871570839,0.64,189.33,189.32,10.87647521]
[1760871571336,0.64,189.33,189.32,37.71647521]
[1760871571719,0.64,189.33,189.32,16.15853732]
[1760871571913,0.1,189.36,189.32,42.99853732]
[1760871572139,0.64,189.35,189.32,42.99853732]
[1760871572326,0.64,189.34,189.32,42.99853732]
[1760871572525,0.1,189.36,189.34,10.87647521]
[1760871573153,0.1,189.36,189.35,26.84]
[1760871573531,0.74,189.36,189.35,26.84]
[1760871573728,0.74,189.36,189.34,10.87647521]
[1760871574043,0.64,189.35,189.33,26.84]
[1760871575244,0.1,189.36,189.33,32.12171965]
[1760871575553,0.74,189.36,189.33,32.12171965]
[1760871575838,0.1,189.36,189.33,5.28171965]
[1760871576534,0.1,189.36,189.34,26.84]
[1760871576829,0.1,189.36,189.33,5.28171965]
[1760871577031,0.1,189.36,189.34,42.99784049]
[1760871577225,0.1,189.36,189.34,16.15784049]
[1760871577431,0.1,189.36,189.35,26.84]
[1760871577724,0.1,189.36,189.34,10.87647521]
[1760871577930,0.74,189.36,189.35,26.84]
[1760871578125,0.74,189.36,189.34,10.87647521]
[1760871578335,0.1,189.36,189.34,10.87647521]
[1760871578532,0.1,189.36,189.34,37.71647521]
[1760871579442,0.1,189.36,189.35,12.09459773]
[1760871579843,0.1,189.36,189.35,38.93459773]
[1760871580033,0.1,189.36,189.35,38.24459773]
[1760871580230,0.1,189.36,189.35,38.93459773]
[1760871580442,0.1,189.36,189.35,12.09459773]
[1760871580846,0.1,189.36,189.35,38.93459773]
[1760871581148,0.1,189.36,189.35,38.24459773]
[1760871581653,0.74,189.36,189.33,26.84]
[1760871581862,0.64,189.35,189.33,26.84]
[1760871582151,0.64,189.35,189.32,26.84]
[1760871582449,0.64,189.35,189.31,12.09470932]
[1760871582745,0.64,189.35,189.32,26.84]
[1760871583245,0.1,189.36,189.32,26.84]
[1760871583444,0.74,189.36,189.33,0.52817831]
[1760871583835,0.74,189.36,189.33,27.36817831]
[1760871584227,0.1,189.36,189.33,27.36817831]
[1760871585148,0.1,189.36,189.33,0.52817831]
[1760871585339,0.1,189.36,189.33,28.07817831]
[1760871586229,0.1,189.36,189.33,0.52817831]
[1760871586552,0.1,189.36,189.33,26.84]
[1760871587249,0.1,189.36,189.32,0.52820621]
[1760871587250,0.1,189.36,189.34,0.71]
[1760871587653,0.1,189.36,189.33,26.84]
[1760871588247,0.1,189.36,189.32,1.23820621]
[1760871588646,0.1,189.36,189.32,28.07820621]
[1760871588853,0.1,189.36,189.31,10.87647521]
[1760871588854,0.64,189.35,189.31,10.87647521]
[1760871589057,0.1,189.36,189.29,0.71]
[1760871589058,0.64,189.34,189.29,0.71]
[1760871589258,0.64,189.35,189.3,0.71]
[1760871589434,0.62851329,189.36,189.31,0.71]
[1760871589757,0.64,189.35,189.29,26.84]
[1760871590251,0.64,189.34,189.29,26.84]
[1760871590439,0.64,189.34,189.29,27.55]
[1760871590636,1.26851329,189.36,189.3,0.71]
[1760871590841,0.74,189.36,189.3,0.71]
[1760871593532,0.1,189.36,189.31,0.52823411]
[1760871593733,0.74,189.36,189.31,1.23823411]
[1760871593959,0.1,189.36,189.32,0.71]
[1760871594159,0.1,189.36,189.33,0.71]
[1760871594652,0.1,189.36,189.31,1.23823411]
[1760871594840,0.1,189.36,189.32,0.71]
[1760871595547,0.1,189.36,189.31,10.87647521]
[1760871595729,0.1,189.36,189.32,0.71]
[1760871595934,0.1,189.36,189.33,0.71]
[1760871596343,0.1,189.36,189.31,10.87647521]
[1760871596547,0.1,189.36,189.32,0.71]
[1760871597433,0.1,189.36,189.31,16.15856814]
[1760871597632,0.1,189.36,189.32,0.71]
[1760871597836,0.1,189.36,189.33,0.71]
[1760871598063,0.1,189.36,189.34,0.71]
[1760871598238,0.1,189.36,189.32,0.52820621]
[1760871598443,0.1,189.36,189.35,0.71]
[1760871599446,0.1,189.36,189.33,0.71]
[1760871599855,0.74,189.36,189.31,38.42647521]
[1760871600258,0.64,189.35,189.29,0.52828992]
[1760871600460,0.64,189.35,189.15,15.91]
[1760871600461,0.52851329,189.34,189.25,0.71]
[1760871600757,0.52851329,189.34,189.26,0.52837366]
[1760871601157,0.52851329,189.34,189.27,0.71]
[1760871601359,1.16851329,189.34,189.27,0.71]
[1760871601569,0.64,189.34,189.28,11.40479304]
[1760871601768,0.64,189.34,189.29,0.71]
[1760871601952,5.80985626,189.35,189.27,10.87647521]
[1760871602153,0.64,189.34,189.26,16.68857053]
[1760871602454,1.16851329,189.33,189.25,37.71647521]
[1760871602661,0.64,189.32,189.25,27.55]
[1760871602847,23.40851329,189.33,189.26,12.11484887]
[1760871603190,22.88,189.35,189.28,10.87647521]
[1760871603345,0.52851329,189.35,189.29,0.71]
[1760871603552,0.62851329,189.36,189.29,0.71]
[1760871604074,0.1,189.36,189.3,61.12473722]
[1760871604276,0.1,189.36,189.32,10.87647521]
[1760871604461,0.1,189.36,189.31,0.71]
[1760871604462,0.1,189.36,189.34,10.87647521]
[1760871604783,0.1,189.36,189.33,0.52817831]
[1760871604784,0.1,189.41,189.36,10.87647521]
[1760871604945,0.1,189.41,189.38,10.87647521]
[1760871605144,0.1,189.41,189.37,1.23806674]
[1760871605145,0.1,189.41,189.37,0.71]
[1760871605345,0.7,189.4,189.3,0.52826201]
[1760871605549,0.52851329,189.39,189.32,0.71]
[1760871605961,2.21623416,189.41,189.33,11.40465352]
[1760871606167,0.1,189.41,189.35,10.87647521]
[1760871606448,0.7,189.4,189.33,10.87647521]
[1760871606872,0.62851329,189.41,189.34,0.71]
[1760871607114,0.1,189.41,189.35,11.40459773]
[1760871607410,0.1,189.41,189.37,10.87647521]
[1760871607579,0.1,189.41,189.37,38.28454195]
[1760871607775,0.1,189.41,189.38,0.71]
[1760871607981,0.1,189.41,189.39,0.71]
[1760871608176,0.1,189.41,189.37,38.99454195]
[1760871608508,0.1,189.41,189.38,0.71]
[1760871608805,0.1,189.41,189.39,10.87647521]
[1760871609107,0.1,189.41,189.4,11.58647521]
[1760871609487,0.1,189.45,189.41,10.87647521]
[1760871609707,0.1,189.45,189.41,12.11443043]
[1760871609914,0.1,189.45,189.43,10.87647521]
[1760871610080,0.1,189.45,189.44,11.40434683]
[1760871610409,0.1,189.45,189.44,38.99434683]
[1760871610600,0.1,189.45,189.44,0.71]
[1760871611014,0.1,189.45,189.44,1.23787162]
[1760871612733,0.1,189.45,189.44,39.01434683]
[1760871614092,0.1,189.45,189.44,64.01434683]
[1760871614313,0.1,189.55,189.48,10.87647521]
[1760871614517,0.1,189.55,189.5,10.87647521]
[1760871614724,0.1,189.55,189.52,10.87647521]
[1760871614911,0.1,189.55,189.54,10.87647521]
[1760871615104,0.1,189.55,189.54,37.79647521]
[1760871615306,0.1,189.55,189.54,38.44647521]
[1760871615714,0.1,189.55,189.54,38.42647521]
[1760871615915,0.1,189.55,189.54,38.95406833]
[1760871616309,0.1,189.55,189.54,12.05406833]
[1760871616515,0.1,189.55,189.54,38.30406833]
[1760871616902,0.1,189.55,189.54,38.95406833]
[1760871617409,0.1,189.6,189.57,22.88]
[1760871617607,0.1,189.6,189.58,38.30395701]
[1760871617920,0.1,189.6,189.59,37.79647521]
[1760871618511,0.1,189.6,189.59,38.50647521]
[1760871620008,0.1,189.6,189.59,40.61935585]
[1760871620926,1.22851329,189.75,189.63,33.75647521]
[1760871621118,0.7,189.73,189.65,10.87647521]
[1760871621433,0.7,189.72,189.61,0.52739834]
[1760871621605,0.52851329,189.71,189.62,26.92]
[1760871621805,0.7,189.7,189.63,11.40381793]
[1760871622109,0.7,189.7,189.63,12.11381793]
[1760871622524,0.7,189.72,189.64,0.71]
[1760871622728,0.52851329,189.76,189.65,11.40376231]
[1760871622907,0.52851329,189.76,189.67,10.87647521]
[1760871623108,0.7,189.75,189.64,10.87647521]
[1760871623401,24.10851329,189.74,189.65,0.71]
[1760871623608,24.10851329,189.74,189.66,10.87647521]
[1760871623827,0.7,189.73,189.66,10.87647521]
[1760871624123,0.7,189.72,189.66,26.96]
[1760871624438,23.58,189.74,189.67,0.71]
[1760871624733,0.52851329,189.73,189.66,26.96]
[1760871624914,1.22851329,189.73,189.66,27.67]
[1760871625105,0.7,189.73,189.66,27.67]
[1760871625437,0.7,189.73,189.67,11.40370671]
[1760871625637,22.88,189.77,189.67,11.40370671]
[1760871625839,0.7,189.72,189.64,10.87647521]
[1760871626042,0.7,189.72,189.65,26.98]
[1760871626418,0.7,189.72,189.65,27.5072871]
[1760871626618,0.7,189.72,189.65,28.2172871]
[1760871626838,0.7,189.71,189.62,22.88]
[1760871627134,0.7,189.7,189.63,10.87647521]
[1760871627339,0.52851329,189.76,189.64,1.23731491]
[1760871627340,0.7,189.75,189.64,1.23731491]
[1760871627642,0.7,189.74,189.66,10.87647521]
[1760871627824,0.7,189.74,189.67,1.2372315]
[1760871628028,0.7,189.77,189.68,11.58647521]
[1760871628227,1.22851329,189.76,189.67,0.5272315]
[1760871628532,1.22851329,189.76,189.65,10.87647521]
[1760871628727,0.7,189.75,189.65,11.58647521]
[1760871628930,1.22851329,189.74,189.65,11.58647521]
[1760871629126,0.7,189.73,189.65,11.58647521]
[1760871629330,0.7,189.73,189.66,0.71]
[1760871629838,0.52851329,189.75,189.67,11.40370671]
[1760871630039,0.7,189.77,189.68,0.71]
[1760871630221,0.7,189.77,189.67,23.4072315]
[1760871630417,1.22851329,189.76,189.67,10.87647521]
[1760871630638,0.7,189.75,189.67,10.87647521]
[1760871631247,0.52851329,189.76,189.67,10.87647521]
[1760871631543,0.7,189.74,189.67,0.71]
[1760871632239,0.52851329,189.73,189.62,11.40384574]
[1760871632441,0.7,189.72,189.61,0.71]
[1760871632641,0.52851329,189.71,189.61,0.71]
[1760871632837,0.7,189.7,189.61,0.71]
[1760871633031,0.52851329,189.69,189.61,0.71]
[1760871633542,0.7,189.68,189.57,0.71]
[1760871633842,23.40851329,189.67,189.55,0.71]
[1760871634023,0.7,189.66,189.55,0.71]
[1760871634220,0.52851329,189.65,189.51,42.86744195]
[1760871634544,0.7,189.64,189.51,27.02]
[1760871634722,22.88,189.61,189.51,27.02]
[1760871635041,1.22851329,189.6,189.47,0.71]
[1760871635216,1.22851329,189.6,189.47,1.23778804]
[1760871635421,22.88,189.57,189.48,11.58647521]
[1760871635721,0.52851329,189.59,189.49,12.11420754]
[1760871636039,15.85833223,189.6,189.55,10.87647521]
[1760871636343,15.85833223,189.6,189.57,10.87647521]
[1760871636527,0.7,189.66,189.58,1.2374818]
[1760871636924,1.22851329,189.66,189.58,1.2374818]
[1760871637142,1.22851329,189.66,189.58,0.5274818]
[1760871637339,0.7,189.68,189.6,10.87647521]
[1760871637520,0.7,189.68,189.61,0.71]
[1760871637721,0.52851329,189.67,189.58,0.71]
[1760871638231,1.22851329,189.67,189.58,1.2374818]
[1760871638843,1.22851329,189.67,189.59,11.58647521]
[1760871640334,1.22851329,189.67,189.6,0.52742616]
[1760871640529,0.7,189.66,189.58,0.71]
[1760871640923,0.7,189.66,189.59,10.87647521]
[1760871641128,0.7,189.66,189.59,11.40392918]
[1760871641440,0.7,189.66,189.6,0.71]
[1760871642120,0.7,189.66,189.58,0.5274818]
[1760871642621,0.52851329,189.65,189.58,0.5274818]
[1760871642824,0.52851329,189.65,189.57,12.11398483]
[1760871643019,0.7,189.64,189.55,0.71]
[1760871643252,0.52851329,189.63,189.55,0.71]
[1760871643747,22.88,189.62,189.55,0.71]
[1760871643955,1.21851329,189.61,189.54,27.04]
[1760871644243,0.69,189.6,189.52,11.58647521]
[1760871644470,1.21851329,189.59,189.49,0.71]
[1760871644843,22.88,189.57,189.46,17.09614812]
[1760871645038,0.52851329,189.56,189.48,0.71]
[1760871645742,0.52851329,189.56,189.49,10.87647521]
[1760871646847,0.52851329,189.59,189.51,10.87647521]
[1760871647045,0.52851329,189.59,189.52,0.71]
[1760871647253,0.69,189.58,189.5,0.71]
[1760871647751,0.52851329,189.57,189.46,28.29781589]
[1760871648052,0.69,189.56,189.47,11.58647521]
[1760871648347,0.52851329,189.55,189.47,11.58647521]
[1760871648551,0.52851329,189.55,189.47,0.71]
[1760871648759,0.69,189.54,189.47,0.71]
[1760871648933,0.52851329,189.57,189.47,0.71]
[1760871649249,0.52851329,189.57,189.48,10.87647521]
[1760871649440,0.52851329,189.57,189.49,0.71]
[1760871650248,0.52851329,189.57,189.5,10.87647521]
[1760871650428,0.52851329,189.57,189.51,0.71]
[1760871651251,0.52851329,189.57,189.5,10.87647521]
[1760871651443,0.69,189.56,189.49,10.87647521]
[1760871651752,0.52851329,189.55,189.49,10.87647521]
[1760871652249,0.52851329,189.57,189.49,10.87647521]
[1760871652432,0.52851329,189.57,189.5,0.71]
[1760871653152,0.69,189.56,189.47,10.87647521]
[1760871653454,1.21851329,189.55,189.47,11.58647521]
[1760871653643,22.88,189.58,189.49,10.87647521]
[1760871653644,0.52851329,189.57,189.49,10.87647521]
[1760871653833,0.52851329,189.57,189.5,0.71]
[1760871655442,22.88,189.58,189.5,0.71]
[1760871655643,0.52851329,189.58,189.51,10.87647521]
[1760871655826,0.52851329,189.59,189.52,0.71]
[1760871656031,0.52851329,189.59,189.53,10.87647521]
[1760871656228,1.21851329,189.65,189.55,10.87647521]
[1760871656429,1.21851329,189.65,189.56,0.71]
[1760871657233,0.52851329,189.65,189.57,11.40398483]
[1760871657440,1.21851329,189.68,189.58,0.71]
[1760871658150,0.52851329,189.68,189.59,10.87647521]
[1760871658357,0.52851329,189.68,189.6,0.71]
[1760871658549,0.69,189.71,189.6,0.71]
[1760871658550,0.52851329,189.7,189.6,0.71]
[1760871658750,0.52851329,189.7,189.61,0.52739834]
[1760871658948,0.52851329,189.7,189.62,0.71]
[1760871659256,12.0949885,189.73,189.63,0.52734272]
[1760871659457,12.0949885,189.73,189.64,0.71]
[1760871659458,1.21851329,189.73,189.64,0.71]
[1760871659852,22.88,189.71,189.62,0.71]
[1760871660039,37.93647521,189.74,189.62,0.71]
[1760871660040,1.21851329,189.7,189.62,0.71]
[1760871660237,1.21851329,189.7,189.59,0.71]